[Event "*** Titled Tuesday Blitz"]
[Site "Chess.com"]
[Date "2020.04.21"]
[Round "5"]
[White "Vincent_Vega95"]
[Black "Stormeman100100"]
[Result "1-0"]
[WhiteElo "2709"]
[BlackElo "2447"]
[TimeControl "180+1"]
[EndTime "10:57:22 PDT"]
[Termination "Vincent_Vega95 won on time"]

1. Nf3 {[%clk 0:03:00.9]} 1... c5 {[%clk 0:02:58.9]} 2. c4 {[%clk 0:03:00.8]}
2... Nc6 {[%clk 0:02:57]} 3. d4 {[%clk 0:03:01]} 3... cxd4 {[%clk 0:02:57.9]} 4.
Nxd4 {[%clk 0:03:01.6]} 4... f5 {[%clk 0:02:55.5]} 5. Nc3 {[%clk 0:02:52.6]}
5... g6 {[%clk 0:02:55.3]} 6. e4 {[%clk 0:02:25.3]} 6... fxe4 {[%clk 0:02:48.8]}
7. Nxc6 {[%clk 0:02:10.4]} 7... bxc6 {[%clk 0:02:46.1]} 8. h4 {[%clk 0:02:09.9]}
8... Bg7 {[%clk 0:02:28.5]} 9. h5 {[%clk 0:02:08.9]} 9... Qa5 {[%clk 0:02:24.1]}
10. Bd2 {[%clk 0:01:53.2]} 10... Qe5 {[%clk 0:02:10.8]} 11. Rh4 {[%clk
0:01:21.9]} 11... d5 {[%clk 0:02:05.5]} 12. cxd5 {[%clk 0:01:22.2]} 12... cxd5
{[%clk 0:02:06.4]} 13. Nb5 {[%clk 0:01:22.4]} 13... d4 {[%clk 0:01:37.9]} 14.
Rc1 {[%clk 0:01:10.7]} 14... Bb7 {[%clk 0:01:27]} 15. Nc7+ {[%clk 0:01:10.3]}
15... Kf8 {[%clk 0:01:22.8]} 16. Bf4 {[%clk 0:00:41.3]} 16... Qa5+ {[%clk
0:01:19.3]} 17. Bd2 {[%clk 0:00:40.5]} 17... Qe5 {[%clk 0:01:16.6]} 18. Bc4
{[%clk 0:00:34.9]} 18... e3 {[%clk 0:01:12]} 19. Rf4+ {[%clk 0:00:31.7]} 19...
Nf6 {[%clk 0:01:08.2]} 20. fxe3 {[%clk 0:00:31.6]} 20... dxe3 {[%clk 0:01:02]}
21. Ne6+ {[%clk 0:00:30.6]} 21... Kg8 {[%clk 0:00:54.6]} 22. Bc3 {[%clk
0:00:28]} 22... Qxh5 {[%clk 0:00:27.3]} 23. Qxh5 {[%clk 0:00:27.5]} 23... gxh5
{[%clk 0:00:27.4]} 24. Nd8+ {[%clk 0:00:27.5]} 24... Kf8 {[%clk 0:00:25.1]} 25.
Nxb7 {[%clk 0:00:27.2]} 25... Bh6 {[%clk 0:00:21.3]} 26. Rf3 {[%clk 0:00:25.7]}
26... Kg7 {[%clk 0:00:17.4]} 27. Nc5 {[%clk 0:00:25.9]} 27... h4 {[%clk
0:00:15.8]} 28. Ke2 {[%clk 0:00:23.4]} 28... Kg6 {[%clk 0:00:14.3]} 29. Rcf1
{[%clk 0:00:23.4]} 29... Nh5 {[%clk 0:00:14.2]} 30. Bd3+ {[%clk 0:00:23]} 30...
Kg5 {[%clk 0:00:13.7]} 31. Rf4 {[%clk 0:00:23.5]} 31... Nxf4+ {[%clk 0:00:13.3]}
32. Kxe3 {[%clk 0:00:21.8]} 32... Nxd3 {[%clk 0:00:10.6]} 33. Kxd3 {[%clk
0:00:20.5]} 33... Rhd8+ {[%clk 0:00:09]} 34. Kc4 {[%clk 0:00:20.7]} 34... Rac8
{[%clk 0:00:08.1]} 35. b4 {[%clk 0:00:20.7]} 35... Kg6 {[%clk 0:00:06.3]} 36. a4
{[%clk 0:00:19.9]} 36... Be3 {[%clk 0:00:06.2]} 37. Re1 {[%clk 0:00:15.6]} 37...
Bxc5 {[%clk 0:00:05.9]} 38. bxc5 {[%clk 0:00:16.2]} 38... Rd7 {[%clk 0:00:06.2]}
39. Re6+ {[%clk 0:00:15.8]} 39... Kf5 {[%clk 0:00:06.3]} 40. Rh6 {[%clk
0:00:16.1]} 40... Rg8 {[%clk 0:00:06.1]} 41. Rh5+ {[%clk 0:00:13.5]} 41... Kg4
{[%clk 0:00:04.4]} 42. Rxh7 {[%clk 0:00:13]} 42... Kg3 {[%clk 0:00:04.8]} 43. c6
{[%clk 0:00:10.6]} 43... Rc7 {[%clk 0:00:04.6]} 44. Be5+ {[%clk 0:00:10.6]}
44... Kxg2 {[%clk 0:00:03.1]} 45. Bxc7 {[%clk 0:00:11.3]} 45... Rc8 {[%clk
0:00:01.6]} 46. Rxe7 {[%clk 0:00:11.8]} 1-0

[Event "*** Titled Tuesday Blitz"]
[Site "Chess.com"]
[Date "2020.04.21"]
[Round "5"]
[White "SketchyMoves"]
[Black "DejanNestor64"]
[Result "1-0"]
[WhiteElo "2679"]
[BlackElo "2408"]
[TimeControl "180+1"]
[EndTime "10:57:23 PDT"]
[Termination "SketchyMoves won on time"]

1. e4 {[%clk 0:03:00.9]} 1... c5 {[%clk 0:02:58.8]} 2. Nc3 {[%clk 0:02:58.7]}
2... e6 {[%clk 0:02:58.6]} 3. f4 {[%clk 0:02:57.3]} 3... Nc6 {[%clk 0:02:57.6]}
4. Bb5 {[%clk 0:02:55.9]} 4... Nge7 {[%clk 0:02:56.2]} 5. Nf3 {[%clk 0:02:55.9]}
5... a6 {[%clk 0:02:53.5]} 6. Bxc6 {[%clk 0:02:56.1]} 6... Nxc6 {[%clk
0:02:52.3]} 7. d3 {[%clk 0:02:57]} 7... d6 {[%clk 0:02:46.1]} 8. O-O {[%clk
0:02:57]} 8... Be7 {[%clk 0:02:46.2]} 9. Be3 {[%clk 0:02:50.3]} 9... O-O {[%clk
0:02:45.4]} 10. Ne2 {[%clk 0:02:45.8]} 10... b5 {[%clk 0:02:44.1]} 11. a4 {[%clk
0:02:43.2]} 11... Bb7 {[%clk 0:02:43]} 12. Ng3 {[%clk 0:02:42.4]} 12... Qd7
{[%clk 0:02:28.4]} 13. f5 {[%clk 0:02:40.9]} 13... Bf6 {[%clk 0:02:16.1]} 14. c3
{[%clk 0:02:33.1]} 14... exf5 {[%clk 0:01:52.3]} 15. Nxf5 {[%clk 0:02:29.4]}
15... Rfe8 {[%clk 0:01:47.8]} 16. Bg5 {[%clk 0:02:25.4]} 16... Re6 {[%clk
0:01:40.2]} 17. Bxf6 {[%clk 0:02:16.7]} 17... Rxf6 {[%clk 0:01:39.8]} 18. Ne3
{[%clk 0:02:15.2]} 18... Re8 {[%clk 0:01:17.5]} 19. axb5 {[%clk 0:02:14.2]}
19... axb5 {[%clk 0:01:15.6]} 20. Nd5 {[%clk 0:02:12]} 20... Rg6 {[%clk
0:01:11.2]} 21. Qb3 {[%clk 0:02:02]} 21... Ne5 {[%clk 0:00:58.5]} 22. Nxe5
{[%clk 0:01:54.8]} 22... dxe5 {[%clk 0:00:57.3]} 23. Ne3 {[%clk 0:01:37.8]}
23... Bc6 {[%clk 0:00:40.8]} 24. Rf3 {[%clk 0:01:19.8]} 24... Rge6 {[%clk
0:00:31]} 25. Nf5 {[%clk 0:01:04.3]} 25... c4 {[%clk 0:00:27.1]} 26. Qd1 {[%clk
0:00:54.3]} 26... cxd3 {[%clk 0:00:22.7]} 27. Rxd3 {[%clk 0:00:55.2]} 27... Qc7
{[%clk 0:00:20.7]} 28. Ng3 {[%clk 0:00:50.4]} 28... g6 {[%clk 0:00:16.9]} 29.
Kh1 {[%clk 0:00:45.3]} 29... R6e7 {[%clk 0:00:16.7]} 30. Qd2 {[%clk 0:00:36.5]}
30... Rd7 {[%clk 0:00:16.5]} 31. Rd1 {[%clk 0:00:31.9]} 31... Red8 {[%clk
0:00:14.5]} 32. Qe3 {[%clk 0:00:30.5]} 32... Rxd3 {[%clk 0:00:13.8]} 33. Rxd3
{[%clk 0:00:31.4]} 33... Rxd3 {[%clk 0:00:13.4]} 34. Qxd3 {[%clk 0:00:32.3]}
34... Kg7 {[%clk 0:00:13.3]} 35. h3 {[%clk 0:00:30.6]} 35... Qe7 {[%clk
0:00:13.1]} 36. Kh2 {[%clk 0:00:29.2]} 36... Qf6 {[%clk 0:00:13.2]} 37. Qe3
{[%clk 0:00:20.5]} 37... h5 {[%clk 0:00:13.1]} 38. Ne2 {[%clk 0:00:17.6]} 38...
h4 {[%clk 0:00:11.5]} 39. Ng1 {[%clk 0:00:16.1]} 39... Qd6 {[%clk 0:00:08.7]}
40. Nf3 {[%clk 0:00:15.9]} 40... Qe7 {[%clk 0:00:08.2]} 41. Kg1 {[%clk
0:00:13.5]} 41... f6 {[%clk 0:00:07]} 42. Nxh4 {[%clk 0:00:12.2]} 42... Qd7
{[%clk 0:00:06]} 43. Qg3 {[%clk 0:00:10.5]} 43... g5 {[%clk 0:00:04.8]} 44. Nf5+
{[%clk 0:00:10.3]} 44... Kg6 {[%clk 0:00:05.2]} 45. Qg4 {[%clk 0:00:08.7]} 45...
Qd2 {[%clk 0:00:03.9]} 46. Ne7+ {[%clk 0:00:08.7]} 46... Kf7 {[%clk 0:00:03.3]}
47. Nxc6 {[%clk 0:00:09.2]} 1-0

[Event "*** Titled Tuesday Blitz"]
[Site "Chess.com"]
[Date "2020.04.21"]
[Round "5"]
[White "Kimster98"]
[Black "KubaGepard"]
[Result "1-0"]
[WhiteElo "2553"]
[BlackElo "2376"]
[TimeControl "180+1"]
[EndTime "10:57:23 PDT"]
[Termination "Kimster98 won by resignation"]

1. d4 {[%clk 0:03:00.9]} 1... d5 {[%clk 0:03:00.1]} 2. c4 {[%clk 0:03:01.4]}
2... dxc4 {[%clk 0:03:01]} 3. Nf3 {[%clk 0:03:00.5]} 3... Nf6 {[%clk 0:02:58.8]}
4. e3 {[%clk 0:03:00.9]} 4... e6 {[%clk 0:02:58.1]} 5. Bxc4 {[%clk 0:03:01.1]}
5... c5 {[%clk 0:02:59]} 6. O-O {[%clk 0:03:00.6]} 6... a6 {[%clk 0:02:59.5]} 7.
b3 {[%clk 0:02:57.1]} 7... cxd4 {[%clk 0:02:57.7]} 8. Nxd4 {[%clk 0:02:56.1]}
8... Bd7 {[%clk 0:02:56.3]} 9. Bb2 {[%clk 0:02:55.7]} 9... Nc6 {[%clk
0:02:55.7]} 10. Nd2 {[%clk 0:02:56]} 10... Nxd4 {[%clk 0:02:52.6]} 11. Bxd4
{[%clk 0:02:56.9]} 11... Bc6 {[%clk 0:02:46.5]} 12. Be2 {[%clk 0:02:54.7]} 12...
Bb4 {[%clk 0:02:44.8]} 13. Nc4 {[%clk 0:02:49.3]} 13... Nd7 {[%clk 0:02:24.4]}
14. Bf3 {[%clk 0:02:41.2]} 14... Bxf3 {[%clk 0:02:21]} 15. Qxf3 {[%clk
0:02:42.1]} 15... O-O {[%clk 0:02:20.5]} 16. Qxb7 {[%clk 0:02:40.8]} 16... Bc5
{[%clk 0:02:14.9]} 17. Rfd1 {[%clk 0:02:39.5]} 17... Bxd4 {[%clk 0:02:14.8]} 18.
Rxd4 {[%clk 0:02:40.4]} 18... Nc5 {[%clk 0:02:14.1]} 19. Rxd8 {[%clk 0:02:33.4]}
19... Nxb7 {[%clk 0:02:13.7]} 20. Rxa8 {[%clk 0:02:33.7]} 20... Rxa8 {[%clk
0:02:12.4]} 21. Rd1 {[%clk 0:02:34.3]} 21... Rd8 {[%clk 0:02:09]} 22. Rxd8+
{[%clk 0:02:33.4]} 22... Nxd8 {[%clk 0:02:09.9]} 23. Kf1 {[%clk 0:02:34.1]}
23... Kf8 {[%clk 0:02:09.5]} 24. Ke2 {[%clk 0:02:33.6]} 24... Ke7 {[%clk
0:02:10]} 25. Kd3 {[%clk 0:02:34.5]} 25... f6 {[%clk 0:02:09.4]} 26. Kd4 {[%clk
0:02:31.5]} 26... Nb7 {[%clk 0:02:07]} 27. b4 {[%clk 0:02:32.1]} 27... Kd7
{[%clk 0:02:06.4]} 28. a4 {[%clk 0:02:32]} 28... Kc6 {[%clk 0:02:06.4]} 29. f4
{[%clk 0:02:31.8]} 29... h5 {[%clk 0:02:02.1]} 30. g3 {[%clk 0:02:31.4]} 30...
g6 {[%clk 0:01:51.1]} 31. h3 {[%clk 0:02:29.3]} 31... Nd8 {[%clk 0:01:43.1]} 32.
g4 {[%clk 0:02:24.2]} 32... hxg4 {[%clk 0:01:42.4]} 33. hxg4 {[%clk 0:02:25.1]}
33... Nf7 {[%clk 0:01:41.5]} 34. e4 {[%clk 0:02:23.6]} 34... g5 {[%clk
0:01:35.2]} 35. fxg5 {[%clk 0:02:17]} 35... e5+ {[%clk 0:01:34.1]} 36. Ke3
{[%clk 0:01:45.4]} 36... Nxg5 {[%clk 0:01:32.7]} 37. Nd2 {[%clk 0:01:46.1]}
37... Nf7 {[%clk 0:01:18.1]} 38. Nf3 {[%clk 0:01:41.9]} 38... Nd6 {[%clk
0:01:18]} 39. Kd3 {[%clk 0:01:42.3]} 39... Nc8 {[%clk 0:01:17.4]} 40. g5 {[%clk
0:01:37.6]} 40... fxg5 {[%clk 0:01:12.4]} 41. Nxe5+ {[%clk 0:01:37.9]} 41... Kc7
{[%clk 0:01:07.7]} 42. Kd4 {[%clk 0:01:28]} 42... Nb6 {[%clk 0:01:01.3]} 43. a5
{[%clk 0:01:27.9]} 43... Na4 {[%clk 0:00:56.1]} 44. Ng4 {[%clk 0:01:11.2]} 44...
Nb2 {[%clk 0:00:51.2]} 45. e5 {[%clk 0:01:10.4]} 45... Kd7 {[%clk 0:00:41.6]}
46. Kd5 {[%clk 0:01:01.8]} 46... Nd3 {[%clk 0:00:40.3]} 47. Kc4 {[%clk 0:00:55]}
47... Nf4 {[%clk 0:00:37.3]} 48. b5 {[%clk 0:00:49.6]} 48... axb5+ {[%clk
0:00:37.4]} 49. Kxb5 {[%clk 0:00:50.5]} 49... Kc7 {[%clk 0:00:37.4]} 50. Nf6
{[%clk 0:00:33.6]} 50... Ne6 {[%clk 0:00:36.2]} 51. a6 {[%clk 0:00:28.1]} 51...
Nd8 {[%clk 0:00:18.4]} 52. Nd5+ {[%clk 0:00:20.5]} 52... Kb8 {[%clk 0:00:16.3]}
53. Kb6 {[%clk 0:00:20.8]} 53... g4 {[%clk 0:00:15.6]} 54. a7+ {[%clk
0:00:19.7]} 1-0

[Event "*** Titled Tuesday Blitz"]
[Site "Chess.com"]
[Date "2020.04.21"]
[Round "5"]
[White "bancsoo"]
[Black "Firehand33"]
[Result "0-1"]
[WhiteElo "2730"]
[BlackElo "2645"]
[TimeControl "180+1"]
[EndTime "10:57:24 PDT"]
[Termination "Firehand33 won on time"]

1. Nf3 {[%clk 0:03:00.9]} 1... b6 {[%clk 0:02:59.5]} 2. g3 {[%clk 0:03:00.5]}
2... Bb7 {[%clk 0:03:00]} 3. Bg2 {[%clk 0:03:00.8]} 3... c5 {[%clk 0:03:00.4]}
4. O-O {[%clk 0:03:00.1]} 4... g6 {[%clk 0:02:59.7]} 5. c4 {[%clk 0:03:00.2]}
5... Bg7 {[%clk 0:02:59.7]} 6. Nc3 {[%clk 0:02:57.3]} 6... Nc6 {[%clk
0:02:51.8]} 7. e3 {[%clk 0:02:35.7]} 7... Nh6 {[%clk 0:02:51.7]} 8. d4 {[%clk
0:02:33.1]} 8... O-O {[%clk 0:02:50.8]} 9. d5 {[%clk 0:02:32.3]} 9... Na5 {[%clk
0:02:50.4]} 10. Nd2 {[%clk 0:02:30.7]} 10... Nf5 {[%clk 0:02:44.5]} 11. Qc2
{[%clk 0:02:29.7]} 11... e6 {[%clk 0:02:37.1]} 12. Rb1 {[%clk 0:02:25.2]} 12...
Rc8 {[%clk 0:02:13.2]} 13. b3 {[%clk 0:02:24.9]} 13... exd5 {[%clk 0:02:01.7]}
14. Nxd5 {[%clk 0:02:24.1]} 14... Ne7 {[%clk 0:02:01.3]} 15. Bb2 {[%clk
0:02:19.3]} 15... Nxd5 {[%clk 0:02:00.5]} 16. cxd5 {[%clk 0:02:19.4]} 16... d6
{[%clk 0:01:54.3]} 17. e4 {[%clk 0:02:15.5]} 17... Ba6 {[%clk 0:01:51.9]} 18.
Bxg7 {[%clk 0:02:09.2]} 18... Kxg7 {[%clk 0:01:46.4]} 19. Rfe1 {[%clk 0:02:09]}
19... Qf6 {[%clk 0:01:44.3]} 20. e5 {[%clk 0:01:55.7]} 20... dxe5 {[%clk
0:01:42.3]} 21. Ne4 {[%clk 0:01:56.3]} 21... Qd8 {[%clk 0:01:37.1]} 22. Qc3
{[%clk 0:01:40.2]} 22... f6 {[%clk 0:01:30.1]} 23. Rbd1 {[%clk 0:01:40]} 23...
Nb7 {[%clk 0:01:22.3]} 24. d6 {[%clk 0:01:39]} 24... Qd7 {[%clk 0:01:17.8]} 25.
f4 {[%clk 0:01:26.8]} 25... Rce8 {[%clk 0:00:57.4]} 26. Nxf6 {[%clk 0:01:00.1]}
26... Rxf6 {[%clk 0:00:56.3]} 27. fxe5 {[%clk 0:01:00.6]} 27... Rfe6 {[%clk
0:00:56]} 28. Bh3 {[%clk 0:00:56.4]} 28... Nd8 {[%clk 0:00:55.6]} 29. Bxe6
{[%clk 0:00:24.9]} 29... Nxe6 {[%clk 0:00:55.5]} 30. h4 {[%clk 0:00:21.6]} 30...
Bb7 {[%clk 0:00:54.2]} 31. Kh2 {[%clk 0:00:21.1]} 31... Nd4 {[%clk 0:00:51.7]}
32. Rxd4 {[%clk 0:00:16.7]} 32... cxd4 {[%clk 0:00:51.6]} 33. Qxd4 {[%clk
0:00:17.6]} 33... Qe6 {[%clk 0:00:39.9]} 34. Rc1 {[%clk 0:00:16.1]} 34... Rc8
{[%clk 0:00:27.4]} 35. Rc7+ {[%clk 0:00:11.1]} 35... Rxc7 {[%clk 0:00:25.9]} 36.
dxc7 {[%clk 0:00:11.6]} 36... Bc8 {[%clk 0:00:23.7]} 37. Kg1 {[%clk 0:00:10.7]}
37... Kf7 {[%clk 0:00:20.9]} 38. Qf4+ {[%clk 0:00:10.2]} 38... Qf5 {[%clk
0:00:18.4]} 39. Qc4+ {[%clk 0:00:09]} 39... Ke7 {[%clk 0:00:16.7]} 40. Qb4+
{[%clk 0:00:09.4]} 40... Kf7 {[%clk 0:00:14.1]} 41. Qd6 {[%clk 0:00:09.6]} 41...
Qe6 {[%clk 0:00:12.2]} 42. Qd8 {[%clk 0:00:09.9]} 42... Bb7 {[%clk 0:00:09.7]}
43. Kf2 {[%clk 0:00:04]} 43... Qc6 {[%clk 0:00:09.1]} 44. Ke3 {[%clk 0:00:01.1]}
44... Qe4+ {[%clk 0:00:09.1]} 0-1

[Event "*** Titled Tuesday Blitz"]
[Site "Chess.com"]
[Date "2020.04.21"]
[Round "5"]
[White "UCantHandleDenker"]
[Black "KuzubovYuriy"]
[Result "0-1"]
[WhiteElo "2524"]
[BlackElo "2749"]
[TimeControl "180+1"]
[EndTime "10:57:24 PDT"]
[Termination "KuzubovYuriy won by resignation"]

1. Nf3 {[%clk 0:02:59.9]} 1... d5 {[%clk 0:02:59.7]} 2. g3 {[%clk 0:02:58.7]}
2... Nd7 {[%clk 0:02:58.5]} 3. d4 {[%clk 0:02:57.3]} 3... Ngf6 {[%clk
0:02:54.3]} 4. Bg2 {[%clk 0:02:57.3]} 4... e6 {[%clk 0:02:54.4]} 5. O-O {[%clk
0:02:56.3]} 5... b5 {[%clk 0:02:54.6]} 6. a4 {[%clk 0:02:56.3]} 6... b4 {[%clk
0:02:54.7]} 7. c4 {[%clk 0:02:56.4]} 7... bxc3 {[%clk 0:02:54.8]} 8. Nxc3 {[%clk
0:02:55.4]} 8... Be7 {[%clk 0:02:45.4]} 9. a5 {[%clk 0:02:54.2]} 9... O-O {[%clk
0:02:41.4]} 10. Bf4 {[%clk 0:02:53.1]} 10... Ba6 {[%clk 0:02:36.4]} 11. Re1
{[%clk 0:02:50.2]} 11... c6 {[%clk 0:02:31.4]} 12. Qc2 {[%clk 0:02:34.3]} 12...
Rc8 {[%clk 0:02:22.3]} 13. e4 {[%clk 0:02:23]} 13... Ne8 {[%clk 0:02:17.2]} 14.
Qd2 {[%clk 0:02:16.1]} 14... Nd6 {[%clk 0:02:08.3]} 15. b3 {[%clk 0:01:54]}
15... Nxe4 {[%clk 0:02:00.3]} 16. Nxe4 {[%clk 0:01:53.6]} 16... dxe4 {[%clk
0:02:00.4]} 17. Rxe4 {[%clk 0:01:54.5]} 17... Nf6 {[%clk 0:01:58.5]} 18. Ree1
{[%clk 0:01:52.4]} 18... Nd5 {[%clk 0:01:58.6]} 19. Rec1 {[%clk 0:01:11.2]}
19... Bb4 {[%clk 0:01:57.2]} 20. Qd1 {[%clk 0:01:06.8]} 20... Nxf4 {[%clk
0:01:56.2]} 21. gxf4 {[%clk 0:01:05.9]} 21... Qf6 {[%clk 0:01:51.9]} 22. Ne5
{[%clk 0:01:02.2]} 22... Qxf4 {[%clk 0:01:48.7]} 23. Rxc6 {[%clk 0:00:56]} 23...
Rxc6 {[%clk 0:01:39.6]} 24. Nxc6 {[%clk 0:00:56.9]} 24... Bd6 {[%clk 0:01:38.1]}
25. Qh5 {[%clk 0:00:46.5]} 25... Bb7 {[%clk 0:01:10.9]} 26. Ne7+ {[%clk
0:00:38.3]} 26... Bxe7 {[%clk 0:01:09.5]} 27. Bxb7 {[%clk 0:00:39.2]} 27... Qxd4
{[%clk 0:01:04.4]} 28. Ra4 {[%clk 0:00:25.9]} 28... Qc3 {[%clk 0:00:53.3]} 29.
Qf3 {[%clk 0:00:25]} 29... Qc1+ {[%clk 0:00:47.7]} 30. Kg2 {[%clk 0:00:24.6]}
30... g6 {[%clk 0:00:41.6]} 31. a6 {[%clk 0:00:24.7]} 31... Rd8 {[%clk
0:00:40.6]} 32. Rc4 {[%clk 0:00:24.4]} 32... Qg5+ {[%clk 0:00:40.3]} 33. Qg3
{[%clk 0:00:23.9]} 33... Qb5 {[%clk 0:00:36.1]} 34. Qf3 {[%clk 0:00:21.4]} 34...
Qa5 {[%clk 0:00:26.9]} 35. Rf4 {[%clk 0:00:19.7]} 35... Rf8 {[%clk 0:00:25.9]}
36. Rc4 {[%clk 0:00:19.3]} 36... Kg7 {[%clk 0:00:24.3]} 37. Qe3 {[%clk
0:00:18.8]} 37... Rd8 {[%clk 0:00:20.4]} 38. Qf3 {[%clk 0:00:13.9]} 38... Bf6
{[%clk 0:00:19.5]} 39. Rf4 {[%clk 0:00:13.7]} 39... Qg5+ {[%clk 0:00:17.8]} 40.
Rg4 {[%clk 0:00:13.6]} 40... Qe5 {[%clk 0:00:17.3]} 41. Rf4 {[%clk 0:00:13.7]}
41... h5 {[%clk 0:00:16.5]} 42. Re4 {[%clk 0:00:13.9]} 42... Qg5+ {[%clk
0:00:16.5]} 43. Qg3 {[%clk 0:00:14.4]} 43... Qc5 {[%clk 0:00:16.4]} 44. Qf3
{[%clk 0:00:13.7]} 44... Rd4 {[%clk 0:00:15.8]} 45. Rf4 {[%clk 0:00:12.6]} 45...
Qg5+ {[%clk 0:00:14.1]} 46. Qg3 {[%clk 0:00:09.7]} 46... Rxf4 {[%clk 0:00:13.6]}
47. Qxg5 {[%clk 0:00:08.9]} 47... Bxg5 {[%clk 0:00:13.8]} 0-1

[Event "*** Titled Tuesday Blitz"]
[Site "Chess.com"]
[Date "2020.04.21"]
[Round "5"]
[White "grunbergmihai"]
[Black "m_ezat"]
[Result "0-1"]
[WhiteElo "2363"]
[BlackElo "2517"]
[TimeControl "180+1"]
[EndTime "10:57:24 PDT"]
[Termination "m_ezat won on time"]

1. Nf3 {[%clk 0:03:00.9]} 1... Nf6 {[%clk 0:02:59.2]} 2. c4 {[%clk 0:03:00.7]}
2... g6 {[%clk 0:02:59]} 3. g3 {[%clk 0:03:00.7]} 3... Bg7 {[%clk 0:02:59.5]} 4.
Bg2 {[%clk 0:03:01.6]} 4... O-O {[%clk 0:03:00]} 5. O-O {[%clk 0:03:02.5]} 5...
c5 {[%clk 0:02:56.2]} 6. Nc3 {[%clk 0:03:00.5]} 6... d5 {[%clk 0:02:55.8]} 7.
cxd5 {[%clk 0:03:00.4]} 7... Nxd5 {[%clk 0:02:56.3]} 8. d4 {[%clk 0:03:00.4]}
8... Nc6 {[%clk 0:02:55.4]} 9. Nxd5 {[%clk 0:02:51.2]} 9... Qxd5 {[%clk
0:02:54.8]} 10. Be3 {[%clk 0:02:29.8]} 10... Qh5 {[%clk 0:02:31.7]} 11. dxc5
{[%clk 0:02:23.1]} 11... Bxb2 {[%clk 0:02:28.1]} 12. Rb1 {[%clk 0:02:23.2]}
12... Bf6 {[%clk 0:02:28.2]} 13. Qa4 {[%clk 0:02:14.4]} 13... Rb8 {[%clk
0:02:23.8]} 14. h4 {[%clk 0:02:07.8]} 14... Bg4 {[%clk 0:02:18.9]} 15. Rfe1
{[%clk 0:01:53.8]} 15... Qf5 {[%clk 0:01:23.1]} 16. Nh2 {[%clk 0:01:47]} 16...
Bxe2 {[%clk 0:01:10.8]} 17. g4 {[%clk 0:01:36.1]} 17... Qd3 {[%clk 0:01:05.2]}
18. Be4 {[%clk 0:01:20.2]} 18... Qa6 {[%clk 0:01:04.1]} 19. Qc2 {[%clk
0:01:18.3]} 19... Bb5 {[%clk 0:01:00.2]} 20. g5 {[%clk 0:01:10.8]} 20... Bg7
{[%clk 0:00:59.1]} 21. Ng4 {[%clk 0:01:05.1]} 21... Nd4 {[%clk 0:00:46.2]} 22.
Nh6+ {[%clk 0:00:56.6]} 22... Kh8 {[%clk 0:00:41.7]} 23. Bxd4 {[%clk 0:00:54.7]}
23... Bxd4 {[%clk 0:00:41.5]} 24. Qb3 {[%clk 0:00:54.8]} 24... Bc4 {[%clk
0:00:39.1]} 25. Qf3 {[%clk 0:00:52.6]} 25... f6 {[%clk 0:00:26.5]} 26. Bxb7
{[%clk 0:00:48.2]} 26... Qxa2 {[%clk 0:00:23.5]} 27. Qg3 {[%clk 0:00:26.6]}
27... fxg5 {[%clk 0:00:18.1]} 28. Ng4 {[%clk 0:00:20.8]} 28... Rf4 {[%clk
0:00:10.2]} 29. hxg5 {[%clk 0:00:19]} 29... Rbf8 {[%clk 0:00:10.2]} 30. Rf1
{[%clk 0:00:15.9]} 30... Bd5 {[%clk 0:00:08.5]} 31. Bxd5 {[%clk 0:00:15.2]}
31... Qxd5 {[%clk 0:00:08]} 32. Rbd1 {[%clk 0:00:14]} 32... Qxg5 {[%clk
0:00:07.6]} 33. Rxd4 {[%clk 0:00:12.9]} 33... Rxd4 {[%clk 0:00:07.9]} 34. f3
{[%clk 0:00:11.6]} 34... e5 {[%clk 0:00:07]} 35. Re1 {[%clk 0:00:10.3]} 35... e4
{[%clk 0:00:04.4]} 36. Kh2 {[%clk 0:00:03.1]} 36... exf3 {[%clk 0:00:04.1]} 37.
Re5 {[%clk 0:00:01.4]} 37... Rd2+ {[%clk 0:00:04.4]} 38. Kh3 {[%clk 0:00:01.1]}
38... Rd5 {[%clk 0:00:02]} 0-1

[Event "*** Titled Tuesday Blitz"]
[Site "Chess.com"]
[Date "2020.04.21"]
[Round "5"]
[White "MisiekZielony"]
[Black "AnastasiaProtopopova"]
[Result "1-0"]
[WhiteElo "2062"]
[BlackElo "2284"]
[TimeControl "180+1"]
[EndTime "10:57:26 PDT"]
[Termination "MisiekZielony won on time"]

1. c4 {[%clk 0:03:00]} 1... e5 {[%clk 0:02:55.6]} 2. Nc3 {[%clk 0:02:59.3]} 2...
Nf6 {[%clk 0:02:55.4]} 3. Nf3 {[%clk 0:02:59]} 3... Nc6 {[%clk 0:02:54.7]} 4. e3
{[%clk 0:02:58.6]} 4... Bb4 {[%clk 0:02:53.4]} 5. Qc2 {[%clk 0:02:57.8]} 5...
Bxc3 {[%clk 0:02:52.5]} 6. Qxc3 {[%clk 0:02:56.2]} 6... Qe7 {[%clk 0:02:52.6]}
7. d4 {[%clk 0:02:49.7]} 7... exd4 {[%clk 0:02:40.1]} 8. Nxd4 {[%clk 0:02:49.1]}
8... Nxd4 {[%clk 0:02:37.1]} 9. Qxd4 {[%clk 0:02:48.5]} 9... O-O {[%clk
0:02:36.9]} 10. Be2 {[%clk 0:02:40.9]} 10... d6 {[%clk 0:02:32.5]} 11. O-O
{[%clk 0:02:39.4]} 11... Re8 {[%clk 0:02:12.9]} 12. b3 {[%clk 0:02:31.2]} 12...
a5 {[%clk 0:02:05.4]} 13. Bb2 {[%clk 0:02:27.4]} 13... a4 {[%clk 0:02:04.9]} 14.
Bf3 {[%clk 0:02:25.7]} 14... a3 {[%clk 0:01:58]} 15. Bc3 {[%clk 0:02:25]} 15...
Qe5 {[%clk 0:01:37.9]} 16. Qd2 {[%clk 0:01:33.6]} 16... Qg5 {[%clk 0:01:32.3]}
17. Bxf6 {[%clk 0:01:27.7]} 17... Qxf6 {[%clk 0:01:29.3]} 18. Rac1 {[%clk
0:01:27.2]} 18... Re5 {[%clk 0:01:20.7]} 19. Qe2 {[%clk 0:01:10.7]} 19... Ra7
{[%clk 0:00:52.3]} 20. Rfd1 {[%clk 0:01:09.2]} 20... Bf5 {[%clk 0:00:47.4]} 21.
Qd2 {[%clk 0:00:35.3]} 21... b6 {[%clk 0:00:46.2]} 22. Qc3 {[%clk 0:00:34.4]}
22... h6 {[%clk 0:00:34.9]} 23. Rd5 {[%clk 0:00:30.1]} 23... Rxd5 {[%clk
0:00:20.8]} 24. Qxf6 {[%clk 0:00:29.1]} 24... gxf6 {[%clk 0:00:21.7]} 25. cxd5
{[%clk 0:00:28.9]} 25... Kf8 {[%clk 0:00:20.5]} 26. e4 {[%clk 0:00:21.8]} 26...
Bd7 {[%clk 0:00:19.4]} 27. Kf1 {[%clk 0:00:22]} 27... f5 {[%clk 0:00:19.2]} 28.
Ke2 {[%clk 0:00:20.8]} 28... fxe4 {[%clk 0:00:18.6]} 29. Bxe4 {[%clk 0:00:20.9]}
29... Ke7 {[%clk 0:00:17.8]} 30. Kd2 {[%clk 0:00:20.8]} 30... Kd8 {[%clk
0:00:16.4]} 31. Rc3 {[%clk 0:00:17.1]} 31... Ra5 {[%clk 0:00:15.4]} 32. Rg3
{[%clk 0:00:16.3]} 32... Rc5 {[%clk 0:00:11.8]} 33. Rg7 {[%clk 0:00:13.9]} 33...
Ke7 {[%clk 0:00:11.1]} 34. Rh7 {[%clk 0:00:13.5]} 34... Bc8 {[%clk 0:00:02.4]}
35. Rxh6 {[%clk 0:00:12.7]} 35... Bb7 {[%clk 0:00:02.8]} 36. Rh5 {[%clk
0:00:12.6]} 36... c6 {[%clk 0:00:02.2]} 37. Rh7 {[%clk 0:00:07.5]} 37... cxd5
{[%clk 0:00:01.9]} 38. Bg6 {[%clk 0:00:07.4]} 1-0